fUSD/lending_fUSD_20250215
["ID","MTS","AMOUNT","RATE_DAILY","PERIOD"]
[353172724,1739627442900,-1794.18,0.00011361,2]
[353172725,1739627442910,-500.0,0.00011361,2]
[353172726,1739627442919,-500.0,0.00011361,2]
[353172727,1739627442929,-500.0,0.00011361,2]
[353172728,1739627442937,-695.87,0.00011361,2]
[353172729,1739627442947,-880.24,0.00011361,2]
[353172730,1739627442957,-749.06,0.00011361,2]
[353172731,1739627442966,-523.73,0.00011361,2]
[353172732,1739627442975,-500.0,0.00011361,2]
[353172733,1739627442985,-874.44,0.00011361,2]
[353172734,1739627442995,-755.04,0.00011361,2]
[353172735,1739627443007,-500.0,0.00011361,2]
[353172736,1739627443017,-1011.29,0.00011361,2]
[353172737,1739627443026,-500.0,0.00011361,2]
[353172738,1739627443036,-500.0,0.00011361,2]
[353172739,1739627443045,-576.67,0.00011361,2]
[353172740,1739627443055,-500.0,0.00011361,2]
[353172741,1739627443064,-500.0,0.00011361,2]
[353172742,1739627443073,-151.0,0.00011361,2]
[353172743,1739627443082,-151.0,0.00011361,2]
[353172744,1739627443092,-1035.68,0.00011361,2]
[353172745,1739627443101,-500.0,0.00011361,2]
[353172746,1739627443111,-151.0,0.00011361,2]
[353172748,1739627443120,-151.0,0.00011361,2]
[353172750,1739627443130,-500.0,0.00011361,2]
[353172751,1739627443139,-500.0,0.00011361,2]
[353172753,1739627443148,-500.0,0.00011361,2]
[353172754,1739627443158,-566.64,0.00011361,2]
[353172755,1739627443171,-500.0,0.00011361,2]
[353172756,1739627443180,-500.0,0.00011361,2]
[353172757,1739627443189,-640.67,0.00011361,2]
[353172758,1739627443199,-500.0,0.00011361,2]
[353172759,1739627443209,-500.0,0.00011361,2]
[353172760,1739627443218,-500.0,0.00011361,2]
[353172761,1739627443228,-500.0,0.00011361,2]
[353172762,1739627443237,-500.0,0.00011361,2]
[353172763,1739627443247,-654.52,0.00011361,2]
[353172764,1739627443258,-500.0,0.00011361,2]
[353172765,1739627443267,-1105.27,0.00011361,2]
[353172766,1739627443276,-500.0,0.00011361,2]
[353172767,1739627443286,-500.0,0.00011361,2]
[353172771,1739627443295,-500.0,0.00011361,2]
[353172773,1739627443305,-823.47,0.00011361,2]
[353172774,1739627443314,-642.49,0.00011361,2]
[353172775,1739627443323,-500.0,0.00011361,2]
[353172776,1739627443334,-500.0,0.00011361,2]
[353172778,1739627443343,-500.0,0.00011361,2]
[353172779,1739627443352,-1078.44,0.00011361,2]
[353172781,1739627443361,-782.11,0.00011361,2]
[353172783,1739627443372,-1036.68,0.00011361,2]
[353172785,1739627443381,-500.0,0.00011361,2]
[353172787,1739627443390,-500.0,0.00011361,2]
[353172789,1739627443399,-3119.43,0.00011361,2]
[353172791,1739627443408,-521.29905419,0.00011361,2]
[353172793,1739627443418,-509.74,0.00011361,2]
[353172795,1739627443427,-500.0,0.00011361,2]
[353172797,1739627443437,-500.0,0.00011361,2]
[353172799,1739627443446,-565.17,0.00011361,2]
[353172801,1739627443455,-500.0,0.00011361,2]
[353172803,1739627443464,-500.0,0.00011361,2]
[353172805,1739627443474,-734.6,0.00011361,2]
[353172807,1739627443484,-500.0,0.00011361,2]
[353172809,1739627443493,-585.32,0.00011361,2]
[353172810,1739627443504,-500.0,0.00011361,2]
[353172812,1739627443513,-500.0,0.00011361,2]
[353172814,1739627443522,-500.0,0.00011361,2]
[353172816,1739627443532,-269.62999793,0.00011361,2]
[353172818,1739627443541,-1043.93,0.00011361,2]
[353172820,1739627443551,-500.0,0.00011361,2]
[353172822,1739627443560,-500.0,0.00011361,2]
[353172824,1739627443570,-503.4,0.00011361,2]
[353172826,1739627443579,-325.08208237,0.00011361,2]
[353172828,1739627443589,-774.73,0.00011361,2]
[353172830,1739627443598,-500.0,0.00011362,2]
[353172832,1739627443608,-455.1174836,0.00011362,2]
[353172834,1739627443618,-500.0,0.00011362,2]
[353172836,1739627443627,-500.0,0.00011362,2]
[353172837,1739627443636,-500.0,0.00011362,2]
[353172839,1739627443646,-500.0,0.00011362,2]
[353172841,1739627443655,-500.0,0.00011362,2]
[353172843,1739627443665,-500.0,0.00011362,2]
[353172845,1739627443676,-503.17258358,0.00011362,2]
[353172847,1739627443685,-497.97572583,0.00011362,2]
[353172848,1739627443695,-642.66286372,0.00011362,2]
[353172849,1739627443705,-500.0,0.00011362,2]
[353172850,1739627443715,-500.0,0.00011362,2]
[353172851,1739627443725,-500.0,0.00011362,2]
[353172852,1739627443734,-501.45004974,0.00011362,2]
[353172853,1739627443744,-200.0,0.00011362,2]
[353172854,1739627443755,-151.0,0.00011362,2]
[353172855,1739627443764,-151.0,0.00011362,2]
[353172856,1739627443773,-151.0,0.00011362,2]
[353172857,1739627443783,-200.0,0.00011362,2]
[353172858,1739627443792,-151.0,0.00011362,2]
[353172859,1739627443802,-151.0,0.00011362,2]
[353172860,1739627443812,-151.0,0.00011362,2]
[353172861,1739627443821,-151.0,0.00011362,2]
[353172862,1739627443831,-151.0,0.00011362,2]
[353172863,1739627443841,-151.0,0.00011362,2]
[353172864,1739627443851,-500.0,0.00011362,2]
[353172865,1739627443861,-500.0,0.00011362,2]
[353172866,1739627443871,-500.0,0.00011362,2]
[353172867,1739627443880,-551.83,0.00011362,2]
[353172868,1739627443890,-500.0,0.00011362,2]
[353172869,1739627443900,-606.75,0.00011362,2]
[353172870,1739627443910,-774.02,0.00011362,2]
[353172871,1739627443920,-719.22,0.00011362,2]
[353172872,1739627443930,-679.16,0.00011362,2]
[353172873,1739627443940,-729.73,0.00011362,2]
[353172874,1739627443949,-500.0,0.00011362,2]
[353172875,1739627443959,-4000.0,0.00011362,2]
[353172876,1739627443968,-151.0,0.00011362,2]
[353172877,1739627443978,-151.0,0.00011363,2]
[353172878,1739627443988,-151.0,0.00011363,2]
[353172879,1739627443998,-151.0,0.00011363,2]
[353172880,1739627444008,-151.0,0.00011363,2]
[353172881,1739627444018,-151.0,0.00011363,2]
[353172882,1739627444027,-151.0,0.00011363,2]
[353172883,1739627444037,-151.0,0.00011363,2]
[353172884,1739627444046,-151.0,0.00011363,2]
[353172885,1739627444056,-151.0,0.00011363,2]
[353172886,1739627444065,-151.0,0.00011363,2]
[353172887,1739627444075,-151.0,0.00011363,2]
[353172888,1739627444084,-151.0,0.00011363,2]
[353172889,1739627444093,-151.0,0.00011363,2]
[353172890,1739627444102,-151.0,0.00011363,2]
[353172891,1739627444111,-151.0,0.00011363,2]
[353172892,1739627444121,-151.0,0.00011363,2]
[353172893,1739627444130,-151.0,0.00011363,2]
[353172894,1739627444139,-151.0,0.00011363,2]
[353172895,1739627444149,-151.0,0.00011363,2]
[353172896,1739627444160,-151.0,0.00011363,2]
[353172897,1739627444171,-151.0,0.00011363,2]
[353172898,1739627444180,-151.0,0.00011363,2]
[353172899,1739627444190,-151.0,0.00011363,2]
[353172900,1739627444200,-151.0,0.00011363,2]
[353172901,1739627444210,-151.0,0.00011363,2]
[353172902,1739627444219,-151.0,0.00011363,2]
[353172903,1739627444228,-151.0,0.00011363,2]
[353172904,1739627444237,-151.0,0.00011363,2]
[353172905,1739627444248,-151.0,0.00011363,2]
[353172906,1739627444259,-151.0,0.00011363,2]
[353172907,1739627444269,-151.0,0.00011363,2]
[353172908,1739627444278,-151.0,0.00011363,2]
[353172909,1739627444287,-151.0,0.00011363,2]
[353172910,1739627444296,-151.0,0.00011363,2]
[353172911,1739627444307,-151.0,0.00011363,2]
[353172912,1739627444316,-151.0,0.00011363,2]
[353172913,1739627444325,-151.0,0.00011363,2]
[353172914,1739627444334,-151.0,0.00011363,2]
[353172915,1739627444343,-151.0,0.00011363,2]
[353172916,1739627444352,-151.0,0.00011363,2]
[353172917,1739627444361,-151.0,0.00011363,2]
[353172918,1739627444370,-151.0,0.00011363,2]
[353172919,1739627444380,-151.0,0.00011363,2]
[353172920,1739627444389,-151.0,0.00011363,2]
[353172921,1739627444398,-151.0,0.00011363,2]
[353172922,1739627444407,-151.0,0.00011363,2]
[353172923,1739627444416,-151.0,0.00011363,2]
[353172924,1739627444426,-151.0,0.00011363,2]
[353172925,1739627444435,-151.0,0.00011363,2]
[353172926,1739627444444,-151.0,0.00011363,2]
[353172927,1739627444453,-294.126128,0.00011363,2]
[353172928,1739627444462,-151.0,0.00011363,2]
[353172929,1739627444471,-151.0,0.00011363,2]
[353172930,1739627444481,-151.0,0.00011363,2]
[353172931,1739627444490,-151.0,0.00011363,2]
[353172932,1739627444501,-151.0,0.00011363,2]
[353172933,1739627444511,-151.0,0.00011363,2]
[353172934,1739627444520,-151.0,0.00011363,2]
[353172935,1739627444530,-95064.41171172,0.00011363,2]
[353172936,1739627444540,-999.0,0.00011369,2]
[353172937,1739627444549,-999.0,0.00011369,2]
[353172938,1739627444558,-999.0,0.00011369,2]
[353172939,1739627444568,-999.0,0.00011369,2]
[353172940,1739627444577,-999.0,0.00011369,2]
[353172941,1739627444587,-999.0,0.00011369,2]
[353172942,1739627444596,-999.0,0.00011369,2]
[353172943,1739627444607,-999.0,0.00011369,2]
[353172944,1739627444617,-999.0,0.00011369,2]
[353172945,1739627444628,-999.0,0.00011369,2]
[353172946,1739627444637,-999.0,0.00011369,2]
[353172947,1739627444647,-999.0,0.00011369,2]
[353172948,1739627444657,-999.0,0.00011369,2]
[353172949,1739627444666,-999.0,0.00011369,2]
[353172950,1739627444675,-871.35016293,0.00011369,2]
[353172951,1739627444685,-150.0,0.00011371,2]
[353172952,1739627444694,-150.0,0.00011372,2]
[353172953,1739627444703,-150.0,0.00011372,2]
[353172954,1739627444712,-150.0,0.00011376,2]
[353172955,1739627444722,-150.0,0.00011378,2]
[353172956,1739627444731,-151.0,0.00011379,2]
[353172957,1739627444740,-151.0,0.00011379,2]
[353172958,1739627444749,-150.0,0.00011379,2]
[353172959,1739627444759,-151.0,0.00011379,2]
[353172960,1739627444768,-15010.47299311,0.0001138,2]
[353172961,1739627444777,-150.0,0.0001138,2]
[353172962,1739627444786,-151.0,0.0001138,2]
[353172963,1739627444795,-160.25223,0.0001138,2]
[353172964,1739627444804,-150.0,0.00011383,2]
[353172965,1739627444814,-150.0,0.0001139,2]
[353172966,1739627444823,-150.0,0.00011393,2]
[353172967,1739627444833,-150.0,0.00011395,2]
[353172968,1739627444842,-150.0,0.00011396,2]
[353172969,1739627444852,-150.0,0.00011398,2]
[353172970,1739627444861,-150.0,0.00011398,2]
[353172971,1739627444870,-150.0,0.000114,2]
[353172972,1739627444879,-1300.0,0.000114,4]
[353172973,1739627444888,-321.0,0.000114,2]
[353172974,1739627444898,-150.0,0.00011401,2]
[353172975,1739627444907,-150.0,0.00011403,2]
[353172976,1739627444916,-150.0,0.00011403,2]
[353172977,1739627444926,-150.0,0.00011408,2]
[353172978,1739627444935,-150.0,0.00011411,2]
[353172979,1739627444945,-150.0,0.00011417,2]
[353172980,1739627444954,-150.0,0.0001142,2]
[353172981,1739627444963,-150.0,0.00011425,2]
[353172982,1739627444972,-150.0,0.00011432,2]
[353172983,1739627444981,-1979.0,0.00011436,2]
[353172984,1739627444990,-800.0,0.00011438,2]
[353172985,1739627444999,-509.74,0.00011442,2]
[353172986,1739627445009,-151.0,0.00011443,2]
[353172987,1739627445018,-151.0,0.00011443,2]
[353172988,1739627445027,-500.0,0.00011443,2]
[353172989,1739627445036,-391.48,0.00011443,2]
[353172990,1739627445045,-151.0,0.00011443,2]
[353172991,1739627445055,-500.0,0.00011443,2]
[353172992,1739627445064,-500.0,0.00011443,2]
[353172993,1739627445072,-500.0,0.00011443,2]
[353172994,1739627445082,-500.0,0.00011443,2]
[353172995,1739627445091,-170.64,0.00011443,2]
[353172996,1739627445100,-500.0,0.00011443,2]
[353172997,1739627445109,-159.332828,0.00011443,2]
[353172998,1739627445118,-500.0,0.00011443,2]
[353172999,1739627445127,-500.0,0.00011443,2]
[353173000,1739627445136,-320.91,0.00011443,2]
[353173001,1739627445146,-500.0,0.00011443,2]
[353173002,1739627445156,-500.0,0.00011443,2]
[353173003,1739627445167,-500.0,0.00011443,2]
[353173004,1739627445176,-500.0,0.00011443,2]
[353173005,1739627445185,-500.0,0.00011443,2]
[353173006,1739627445195,-500.0,0.00011443,2]
[353173007,1739627445204,-182.71537424,0.00011443,2]
[353173008,1739627445215,-269.44,0.00011443,2]
[353173009,1739627445223,-179.85,0.00011443,2]
[353173010,1739627445232,-500.0,0.00011443,2]
[353173011,1739627445242,-500.0,0.00011443,2]
[353173012,1739627445251,-500.0,0.00011443,2]
[353173013,1739627445260,-500.0,0.00011443,2]
[353173014,1739627445270,-502.14,0.00011443,2]
[353173015,1739627445279,-500.0,0.00011443,2]
[353173016,1739627445288,-500.0,0.00011443,2]
[353173017,1739627445297,-500.0,0.00011443,2]
[353173018,1739627445307,-500.0,0.00011443,2]
[353173019,1739627445316,-500.0,0.00011443,2]
[353173020,1739627445326,-502.07,0.00011443,2]
[353173021,1739627445337,-500.0,0.00011443,2]
[353173022,1739627445346,-228.06,0.00011443,2]
[353173023,1739627445355,-1543.36,0.00011443,2]
[353173024,1739627445364,-269.36,0.00011443,2]
[353173025,1739627445374,-500.0,0.00011443,2]
[353173026,1739627445383,-500.0,0.00011443,2]
[353173027,1739627445392,-156.138995,0.00011443,2]
[353173028,1739627445401,-346.29,0.00011443,2]
[353173029,1739627445410,-500.0,0.00011443,2]
[353173030,1739627445419,-176.01,0.00011443,2]
[353173031,1739627445429,-500.0,0.00011443,2]
[353173032,1739627445438,-194.09,0.00011443,2]
[353173033,1739627445448,-500.0,0.00011443,2]
[353173034,1739627445457,-151.71724,0.00011443,2]
[353173035,1739627445467,-500.0,0.00011443,2]
[353173036,1739627445476,-373.3516562,0.00011443,2]
[353173037,1739627445486,-500.0,0.00011443,2]
[353173038,1739627445496,-175.67,0.00011443,2]
[353173039,1739627445505,-500.0,0.00011443,2]
[353173040,1739627445515,-500.0,0.00011443,2]
[353173041,1739627445524,-500.0,0.00011443,2]
[353173042,1739627445534,-500.0,0.00011443,2]
[353173043,1739627445543,-500.0,0.00011443,2]
[353173044,1739627445552,-500.0,0.00011443,2]
[353173045,1739627445561,-179.34,0.00011443,2]
[353173046,1739627445570,-500.0,0.00011443,2]
[353173047,1739627445579,-500.0,0.00011443,2]
[353173048,1739627445588,-500.0,0.00011443,2]
[353173049,1739627445597,-500.0,0.00011443,2]
[353173050,1739627445607,-500.0,0.00011443,2]
[353173051,1739627445616,-500.0,0.00011443,2]
[353173052,1739627445625,-314.6,0.00011443,2]
[353173053,1739627445635,-500.0,0.00011443,2]
[353173054,1739627445644,-500.0,0.00011443,2]
[353173055,1739627445654,-457.94,0.00011443,2]
[353173056,1739627445664,-500.0,0.00011443,2]
[353173057,1739627445674,-500.0,0.00011443,2]
[353173058,1739627445683,-360.78,0.00011443,2]
[353173059,1739627445693,-500.0,0.00011443,2]
[353173060,1739627445703,-552.06,0.00011443,2]
[353173061,1739627445714,-571.79498435,0.00011443,2]
[353173062,1739627445723,-451.5403853,0.00011443,2]
[353173063,1739627445733,-500.0,0.00011443,2]
[353173064,1739627445743,-358.96,0.00011443,2]
[353173065,1739627445755,-157.41,0.00011443,2]
[353173066,1739627445765,-500.0,0.00011443,2]
[353173067,1739627445774,-397.83,0.00011443,2]
[353173068,1739627445784,-373.47,0.00011443,2]
[353173069,1739627445793,-599.35,0.00011443,2]
[353173070,1739627445802,-500.0,0.00011443,2]
[353173071,1739627445812,-500.0,0.00011443,2]
[353173072,1739627445821,-500.0,0.00011443,2]
[353173073,1739627445974,-500.0,0.00011443,2]
[353173074,1739627445984,-812.05,0.00011443,2]
[353173075,1739627445995,-500.0,0.00011443,2]
[353173076,1739627446007,-500.0,0.00011443,2]
[353173077,1739627446016,-500.0,0.00011443,2]
[353173078,1739627446026,-500.0,0.00011443,2]
[353173079,1739627446036,-500.0,0.00011443,2]
[353173080,1739627446046,-500.0,0.00011443,2]
[353173081,1739627446055,-500.0,0.00011443,2]
[353173082,1739627446065,-500.0,0.00011443,2]
[353173083,1739627446074,-709.87,0.00011443,2]
[353173084,1739627446083,-500.0,0.00011443,2]
[353173085,1739627446092,-600.9,0.00011443,2]
[353173086,1739627446102,-500.0,0.00011443,2]
[353173088,1739627446111,-1321.82,0.00011443,2]
[353173089,1739627446120,-500.0,0.00011443,2]
[353173090,1739627446130,-500.0,0.00011443,2]
[353173091,1739627446140,-811.0,0.00011443,2]
[353173092,1739627446150,-660.28,0.00011443,2]
[353173093,1739627446159,-639.89,0.00011443,2]
[353173095,1739627446171,-863.52,0.00011443,2]
[353173096,1739627446181,-577.08,0.00011443,2]
[353173097,1739627446191,-500.0,0.00011443,2]
[353173098,1739627446202,-766.58,0.00011443,2]
[353173099,1739627446212,-370.39,0.00011443,2]
[353173100,1739627446222,-522.66,0.00011443,2]
[353173101,1739627446232,-500.0,0.00011443,2]
[353173103,1739627446243,-230.31,0.00011443,2]
[353173104,1739627446255,-2570.44,0.00011443,2]
[353173105,1739627446266,-500.0,0.00011443,2]
[353173106,1739627446276,-718.89,0.00011443,2]
[353173108,1739627446286,-512.44,0.00011443,2]
[353173109,1739627446295,-528.01,0.00011443,2]
[353173110,1739627446305,-500.0,0.00011443,2]
[353173111,1739627446315,-615.91,0.00011443,2]
[353173112,1739627446324,-661.35,0.00011443,2]
[353173113,1739627446334,-832.86,0.00011443,2]
[353173114,1739627446344,-500.0,0.00011443,2]
[353173115,1739627446354,-500.0,0.00011443,2]
[353173116,1739627446363,-500.0,0.00011443,2]
[353173117,1739627446374,-500.0,0.00011443,2]
[353173118,1739627446383,-1066.05,0.00011443,2]
[353173119,1739627446393,-1794.18,0.00011443,2]
[353173120,1739627446403,-500.0,0.00011443,2]
[353173121,1739627446413,-500.0,0.00011443,2]
[353173122,1739627446422,-500.0,0.00011443,2]
[353173123,1739627446432,-695.87,0.00011443,2]
[353173124,1739627446442,-880.24,0.00011443,2]
[353173125,1739627446451,-749.06,0.00011443,2]
[353173126,1739627446461,-523.73,0.00011443,2]
[353173127,1739627446471,-500.0,0.00011443,2]
[353173128,1739627446480,-768.81,0.00011443,2]
[353173129,1739627446490,-874.44,0.00011443,2]
[353173130,1739627446500,-755.04,0.00011443,2]
[353173131,1739627446514,-500.0,0.00011443,2]
[353173132,1739627446524,-1011.29,0.00011443,2]
[353173133,1739627446534,-711.47,0.00011443,2]
[353173134,1739627446543,-500.0,0.00011443,2]
[353173135,1739627446553,-500.0,0.00011443,2]
[353173136,1739627446563,-576.67,0.00011443,2]
[353173137,1739627446573,-500.0,0.00011443,2]
[353173138,1739627446583,-904.03,0.00011443,2]
[353173139,1739627446593,-500.0,0.00011443,2]
[353173140,1739627446603,-1035.68,0.00011443,2]
[353173141,1739627446613,-500.0,0.00011443,2]
[353173142,1739627446623,-500.0,0.00011443,2]
[353173143,1739627446633,-500.0,0.00011443,2]
[353173144,1739627446643,-500.0,0.00011443,2]
[353173146,1739627446653,-500.0,0.00011443,2]
[353173148,1739627446663,-566.64,0.00011443,2]
[353173150,1739627446672,-500.0,0.00011443,2]
[353173152,1739627446682,-500.0,0.00011443,2]
[353173154,1739627446692,-640.67,0.00011443,2]
[353173156,1739627446701,-396.02,0.00011443,2]
[353173158,1739627446711,-1080.79,0.00011443,2]
[353173160,1739627446722,-500.0,0.00011443,2]
[353173162,1739627446731,-140.23523399,0.00011443,2]
[353173169,1739627446797,-500.0,0.00011361,2]
[353173171,1739627446807,-100.0,0.00011443,2]
[353173202,1739627447106,-36.86119773,0.00011443,2]
[353173205,1739627447121,-222.90356828,0.00011443,2]
[353173207,1739627447131,-360.14,0.00011443,2]
[353173209,1739627447140,-500.0,0.00011443,2]
[353173211,1739627447150,-654.52,0.00011443,2]
[353173213,1739627447160,-500.0,0.00011443,2]
[353173215,1739627447171,-1105.27,0.00011443,2]
[353173217,1739627447181,-292.68,0.00011443,2]
[353173219,1739627447190,-500.0,0.00011443,2]
[353173221,1739627447200,-500.0,0.00011443,2]
[353173223,1739627447210,-823.47,0.00011443,2]
[353173225,1739627447220,-642.49,0.00011443,2]
[353173227,1739627447229,-500.0,0.00011443,2]
[353173229,1739627447239,-500.0,0.00011443,2]
[353173231,1739627447253,-500.0,0.00011443,2]
[353173233,1739627447263,-569.65,0.00011443,2]
[353173235,1739627447272,-1078.44,0.00011443,2]
[353173237,1739627447282,-782.11,0.00011443,2]
[353173238,1739627447291,-1036.68,0.00011443,2]
[353173239,1739627447301,-500.0,0.00011443,2]
[353173240,1739627447311,-500.0,0.00011443,2]
[353173241,1739627447321,-500.0,0.00011443,2]
[353173242,1739627447330,-543.12,0.00011443,2]
[353173243,1739627447339,-3119.43,0.00011443,2]
[353173244,1739627447349,-500.0,0.00011443,2]
[353173245,1739627447358,-504.8,0.00011443,2]
[353173246,1739627447368,-734.6,0.00011443,2]
[353173247,1739627447378,-581.81,0.00011443,2]
[353173248,1739627447388,-585.32,0.00011443,2]
[353173249,1739627447397,-500.0,0.00011443,2]
[353173250,1739627447407,-500.0,0.00011443,2]
[353173252,1739627447417,-500.0,0.00011443,2]
[353173254,1739627447426,-480.19,0.00011443,2]
[353173255,1739627447436,-1043.93,0.00011443,2]
[353173256,1739627447445,-500.0,0.00011443,2]
[353173258,1739627447455,-523.73,0.00011443,2]
[353173260,1739627447464,-500.0,0.00011443,2]
[353173262,1739627447474,-151.0,0.00011444,2]
[353173264,1739627447483,-151.0,0.00011444,2]
[353173266,1739627447492,-500.0,0.00011444,2]
[353173268,1739627447501,-500.0,0.00011444,2]
[353173269,1739627447512,-500.0,0.00011444,2]
[353173271,1739627447521,-551.83,0.00011444,2]
[353173273,1739627447531,-500.0,0.00011444,2]
[353173275,1739627447541,-606.75,0.00011444,2]
[353173277,1739627447550,-774.02,0.00011444,2]
[353173279,1739627447560,-719.22,0.00011444,2]
[353173281,1739627447569,-679.16,0.00011444,2]
[353173283,1739627447579,-729.73,0.00011444,2]
[353173285,1739627447588,-150.0,0.00011449,2]
[353173287,1739627447599,-150.0,0.00011449,2]
[353173289,1739627447608,-244.11994347,0.0001145,2]
[353173291,1739627447617,-150.0,0.00011452,2]
[353173293,1739627447627,-150.44,0.00011452,2]
[353173294,1739627447637,-150.0,0.00011456,2]
[353173296,1739627447647,-15601.94374285,0.00011463,2]
[353173299,1739627447657,-500.0,0.00011471,2]
[353173300,1739627447666,-200.0,0.00011476,2]
[353173302,1739627447676,-394.49545199,0.0001148,2]
[353173304,1739627447685,-1600.0,0.000115,2]
[353173306,1739627447694,-1701.41,0.000115,2]
[353173308,1739627447704,-1800.0,0.000115,4]
[353173310,1739627447714,-500.0,0.00011525,2]
[353173312,1739627447723,-500.0,0.00011525,2]
[353173314,1739627447734,-500.0,0.00011525,2]
[353173316,1739627447744,-880.24,0.00011525,2]
[353173318,1739627447754,-768.81,0.00011525,2]
[353173320,1739627447764,-755.04,0.00011525,2]
[353173322,1739627447773,-711.47,0.00011525,2]
[353173324,1739627447782,-500.0,0.00011525,2]
[353173326,1739627447791,-576.67,0.00011525,2]
[353173328,1739627447801,-904.03,0.00011525,2]
[353173330,1739627447810,-1035.68,0.00011525,2]
[353173332,1739627447819,-500.0,0.00011525,2]
[353173333,1739627447828,-566.64,0.00011525,2]
[353173335,1739627447837,-1080.79,0.00011525,2]
[353173337,1739627447847,-500.0,0.00011525,2]
[353173339,1739627447856,-1105.27,0.00011525,2]
[353173341,1739627447866,-500.0,0.00011525,2]
[353173343,1739627447875,-569.65,0.00011525,2]
[353173345,1739627447884,-1078.44,0.00011525,2]
[353173347,1739627447894,-500.0,0.00011525,2]
[353173349,1739627447903,-244.80948063,0.00011525,2]
[353173351,1739627447912,-543.12,0.00011525,2]
[353173353,1739627447922,-500.0,0.00011525,2]
[353173355,1739627447931,-585.32,0.00011525,2]
[353173357,1739627447940,-500.0,0.00011525,2]
[353173359,1739627447950,-500.0,0.00011525,2]
[353173361,1739627447959,-500.0,0.00011525,2]
[353173363,1739627447968,-500.0,0.00011526,2]
[353173365,1739627447978,-500.0,0.00011526,2]
[353173367,1739627447988,-500.0,0.00011526,2]
[353173369,1739627447998,-500.0,0.00011526,2]
[353173370,1739627448007,-500.0,0.00011526,2]
[353173373,1739627448017,-500.0,0.00011526,2]
[353173375,1739627448028,-403.28,0.00011526,2]
[353173376,1739627448039,-500.0,0.00011526,2]
[353173378,1739627448049,-500.0,0.00011526,2]
[353173380,1739627448059,-323.37,0.00011526,2]
[353173382,1739627448069,-230.65,0.00011526,2]
[353173384,1739627448079,-500.0,0.00011526,2]
[353173386,1739627448089,-500.0,0.00011526,2]
[353173388,1739627448098,-500.0,0.00011526,2]
[353173390,1739627448108,-221.69,0.00011526,2]
[353173392,1739627448118,-636.58,0.00011526,2]
[353173394,1739627448131,-500.0,0.00011526,2]
[353173396,1739627448141,-500.0,0.00011526,2]
[353173398,1739627448151,-328.78,0.00011526,2]
[353173400,1739627448162,-500.0,0.00011526,2]
[353173402,1739627448172,-212.85,0.00011526,2]
[353173404,1739627448182,-500.0,0.00011526,2]
[353173406,1739627448192,-1543.36,0.00011526,2]
[353173408,1739627448202,-211.65,0.00011526,2]